[Event "*** Titled Tuesday Blitz"]
[Site "Chess.com"]
[Date "2021.03.16"]
[Round "5"]
[White "ChessWarrior7197"]
[Black "Meri-Arabidze"]
[Result "0-1"]
[WhiteElo "2893"]
[BlackElo "2662"]
[TimeControl "180+1"]
[EndTime "10:55:53 PDT"]
[Termination "Meri-Arabidze won by checkmate"]

1. e4 {[%clk 0:03:00.9]} 1... c5 {[%clk 0:02:59.9]} 2. Nc3 {[%clk 0:02:59.3]}
2... e6 {[%clk 0:03:00.4]} 3. g3 {[%clk 0:02:58.9]} 3... Nc6 {[%clk 0:03:00.9]}
4. Bg2 {[%clk 0:02:58.9]} 4... a6 {[%clk 0:03:00.6]} 5. Nge2 {[%clk 0:02:58.9]}
5... Nf6 {[%clk 0:03:00.3]} 6. O-O {[%clk 0:02:58.8]} 6... Qc7 {[%clk
0:02:59.9]} 7. d3 {[%clk 0:02:57.9]} 7... Be7 {[%clk 0:02:58.5]} 8. h3 {[%clk
0:02:58]} 8... O-O {[%clk 0:02:58.6]} 9. Be3 {[%clk 0:02:58]} 9... d6 {[%clk
0:02:58.2]} 10. f4 {[%clk 0:00:20.2]} 10... b5 {[%clk 0:02:58.2]} 11. Kh2 {[%clk
0:00:19.1]} 11... Bb7 {[%clk 0:02:58.3]} 12. g4 {[%clk 0:00:19.7]} 12... b4
{[%clk 0:02:58.6]} 13. Nb1 {[%clk 0:00:19.8]} 13... a5 {[%clk 0:02:57.5]} 14.
Nd2 {[%clk 0:00:20.1]} 14... a4 {[%clk 0:02:56.6]} 15. Nf3 {[%clk 0:00:20.7]}
15... d5 {[%clk 0:02:48.4]} 16. e5 {[%clk 0:00:21]} 16... Nd7 {[%clk 0:02:48.6]}
17. Ng3 {[%clk 0:00:20.9]} 17... Ba6 {[%clk 0:02:38.4]} 18. g5 {[%clk
0:00:19.2]} 18... c4 {[%clk 0:02:29.3]} 19. Rf2 {[%clk 0:00:19.1]} 19... cxd3
{[%clk 0:02:28.6]} 20. cxd3 {[%clk 0:00:20]} 20... Rfc8 {[%clk 0:02:15.1]} 21.
d4 {[%clk 0:00:20.2]} 21... g6 {[%clk 0:02:04.1]} 22. Rc1 {[%clk 0:00:20.2]}
22... Qb7 {[%clk 0:01:59.2]} 23. Kg1 {[%clk 0:00:20.6]} 23... b3 {[%clk
0:01:55.1]} 24. a3 {[%clk 0:00:20.3]} 24... Na5 {[%clk 0:01:53]} 25. Nh2 {[%clk
0:00:20.8]} 25... Rxc1 {[%clk 0:01:51.4]} 26. Bxc1 {[%clk 0:00:20.4]} 26... Rc8
{[%clk 0:01:50.9]} 27. Ng4 {[%clk 0:00:21.3]} 27... Qc6 {[%clk 0:01:40.9]} 28.
Be3 {[%clk 0:00:21.3]} 28... Nc4 {[%clk 0:01:35.7]} 29. Bf1 {[%clk 0:00:21.2]}
29... Nxe3 {[%clk 0:01:28.5]} 30. Nxe3 {[%clk 0:00:22.1]} 30... Bxf1 {[%clk
0:01:27.9]} 31. Ngxf1 {[%clk 0:00:23]} 31... Qc1 {[%clk 0:01:18.9]} 32. Qd3
{[%clk 0:00:23]} 32... Bxa3 {[%clk 0:01:03.1]} 33. bxa3 {[%clk 0:00:20.9]} 33...
b2 {[%clk 0:01:02.8]} 34. Rxb2 {[%clk 0:00:11.4]} 34... Qxb2 {[%clk 0:01:02.4]}
35. h4 {[%clk 0:00:11.9]} 35... Qb3 {[%clk 0:00:44.2]} 36. Qa6 {[%clk
0:00:11.7]} 36... Rc1 {[%clk 0:00:43.1]} 37. Qa8+ {[%clk 0:00:08.3]} 37... Nf8
{[%clk 0:00:43.1]} 38. Kf2 {[%clk 0:00:08.6]} 38... Qxa3 {[%clk 0:00:38.4]} 39.
h5 {[%clk 0:00:08.3]} 39... gxh5 {[%clk 0:00:38.1]} 40. f5 {[%clk 0:00:08]}
40... Qb2+ {[%clk 0:00:35.5]} 41. Kf3 {[%clk 0:00:05.6]} 41... Qxd4 {[%clk
0:00:34.1]} 42. fxe6 {[%clk 0:00:05]} 42... fxe6 {[%clk 0:00:33.2]} 43. Qe8
{[%clk 0:00:05.2]} 43... Qe4+ {[%clk 0:00:30.9]} 44. Kf2 {[%clk 0:00:05.2]}
44... Qf4+ {[%clk 0:00:25.9]} 45. Kg2 {[%clk 0:00:03.3]} 45... Qxg5+ {[%clk
0:00:24.6]} 46. Kh3 {[%clk 0:00:02.6]} 46... Rc3 {[%clk 0:00:22]} 47. Kh2 {[%clk
0:00:01.5]} 47... Rxe3 {[%clk 0:00:20.5]} 48. Nxe3 {[%clk 0:00:02.4]} 48...
Qxe5+ {[%clk 0:00:18.6]} 49. Kg2 {[%clk 0:00:03.2]} 49... Qxe3 {[%clk 0:00:18]}
50. Kh2 {[%clk 0:00:03.7]} 50... Qf4+ {[%clk 0:00:17.8]} 51. Kg2 {[%clk
0:00:03.9]} 51... Qg4+ {[%clk 0:00:17.8]} 52. Kh2 {[%clk 0:00:04.2]} 52... Qg6
{[%clk 0:00:17.8]} 53. Qd8 {[%clk 0:00:03.3]} 53... a3 {[%clk 0:00:16.7]} 54.
Qa8 {[%clk 0:00:03.5]} 54... Qc2+ {[%clk 0:00:15.7]} 55. Kg3 {[%clk 0:00:02.8]}
55... a2 {[%clk 0:00:16.6]} 56. Kh4 {[%clk 0:00:02.5]} 56... Qe4+ {[%clk
0:00:15.3]} 57. Kxh5 {[%clk 0:00:01.8]} 57... Qe5+ {[%clk 0:00:15.6]} 58. Kh4
{[%clk 0:00:01.9]} 58... a1=Q {[%clk 0:00:13.9]} 59. Qa3 {[%clk 0:00:01.2]}
59... Qf6+ {[%clk 0:00:12.3]} 60. Kg4 {[%clk 0:00:02.1]} 60... Qg1+ {[%clk
0:00:10]} 61. Kh5 {[%clk 0:00:03]} 61... Qgg5# {[%clk 0:00:09.3]} 0-1

[Event "*** Titled Tuesday Blitz"]
[Site "Chess.com"]
[Date "2021.03.16"]
[Round "5"]
[White "korbul"]
[Black "AwareIdea"]
[Result "1/2-1/2"]
[WhiteElo "2599"]
[BlackElo "2435"]
[TimeControl "180+1"]
[EndTime "10:56:02 PDT"]
[Termination "Game drawn by agreement"]

1. d4 {[%clk 0:03:00.9]} 1... d5 {[%clk 0:02:58.8]} 2. Nf3 {[%clk 0:03:00.2]}
2... Nf6 {[%clk 0:02:52.7]} 3. Bf4 {[%clk 0:02:59.8]} 3... c5 {[%clk 0:02:51.9]}
4. e3 {[%clk 0:02:59.2]} 4... Qb6 {[%clk 0:02:51.6]} 5. Nc3 {[%clk 0:02:56.4]}
5... a6 {[%clk 0:02:49.5]} 6. Rb1 {[%clk 0:02:52.6]} 6... Nc6 {[%clk 0:02:45.5]}
7. Be2 {[%clk 0:02:49.7]} 7... Bg4 {[%clk 0:02:41.4]} 8. dxc5 {[%clk 0:02:47.1]}
8... Qxc5 {[%clk 0:02:40.2]} 9. O-O {[%clk 0:02:46.3]} 9... e6 {[%clk
0:02:38.1]} 10. Ne5 {[%clk 0:02:37.8]} 10... Bxe2 {[%clk 0:02:33.5]} 11. Qxe2
{[%clk 0:02:36.3]} 11... Nxe5 {[%clk 0:02:32.9]} 12. Bxe5 {[%clk 0:02:35.7]}
12... Be7 {[%clk 0:02:33.3]} 13. Bd4 {[%clk 0:02:11.3]} 13... Qc7 {[%clk
0:02:29.7]} 14. f4 {[%clk 0:02:07.4]} 14... O-O {[%clk 0:02:28.4]} 15. Rf3
{[%clk 0:02:06.3]} 15... Nd7 {[%clk 0:02:26.5]} 16. Rh3 {[%clk 0:02:02.1]} 16...
Bf6 {[%clk 0:02:18.7]} 17. Qh5 {[%clk 0:01:42.1]} 17... h6 {[%clk 0:02:16.4]}
18. Rg3 {[%clk 0:01:38.7]} 18... Kh7 {[%clk 0:02:08.3]} 19. Rf1 {[%clk 0:01:33]}
19... Qc4 {[%clk 0:01:53.9]} 20. Bxf6 {[%clk 0:01:30.4]} 20... Nxf6 {[%clk
0:01:54.8]} 21. Qf3 {[%clk 0:01:29.9]} 21... Ne4 {[%clk 0:01:28.3]} 22. Nxe4
{[%clk 0:01:28.6]} 22... dxe4 {[%clk 0:01:29.2]} 23. Qg4 {[%clk 0:01:27.8]}
23... g6 {[%clk 0:01:28]} 24. Rh3 {[%clk 0:01:21]} 24... Qc5 {[%clk 0:01:13.9]}
25. Qh4 {[%clk 0:01:15.2]} 25... h5 {[%clk 0:01:09.9]} 26. g4 {[%clk 0:01:01.3]}
26... Kg7 {[%clk 0:00:33.2]} 27. gxh5 {[%clk 0:00:58.6]} 27... Qxh5 {[%clk
0:00:34.1]} 28. Qxh5 {[%clk 0:00:55.7]} 28... gxh5 {[%clk 0:00:35]} 29. Rxh5
{[%clk 0:00:55.6]} 29... Rac8 {[%clk 0:00:35.2]} 30. c3 {[%clk 0:00:54.8]} 30...
Rfd8 {[%clk 0:00:34.8]} 31. Rf2 {[%clk 0:00:54.7]} 31... Rd1+ {[%clk 0:00:34.4]}
32. Kg2 {[%clk 0:00:53.9]} 32... Rcd8 {[%clk 0:00:33.1]} 33. Re5 {[%clk
0:00:52.2]} 33... R8d2 {[%clk 0:00:31.3]} 34. Rxe4 {[%clk 0:00:51.7]} 34...
Rxf2+ {[%clk 0:00:31]} 35. Kxf2 {[%clk 0:00:51.8]} 35... Rd2+ {[%clk 0:00:31.9]}
36. Kg3 {[%clk 0:00:51.1]} 36... Rxb2 {[%clk 0:00:32.8]} 37. Rb4 {[%clk
0:00:49.6]} 37... Rxa2 {[%clk 0:00:28.9]} 38. Rxb7 {[%clk 0:00:49.2]} 38... Rc2
{[%clk 0:00:25.9]} 39. Rc7 {[%clk 0:00:46.3]} 39... a5 {[%clk 0:00:25.8]} 40. h4
{[%clk 0:00:40.2]} 40... a4 {[%clk 0:00:23.5]} 41. Kf3 {[%clk 0:00:40.3]} 41...
a3 {[%clk 0:00:22.3]} 42. c4 {[%clk 0:00:40.3]} 42... a2 {[%clk 0:00:19.3]} 43.
Ra7 {[%clk 0:00:40.3]} 43... Rh2 {[%clk 0:00:15.6]} 44. c5 {[%clk 0:00:39.6]}
44... Rc2 {[%clk 0:00:15.1]} 45. c6 {[%clk 0:00:38.1]} 45... Rxc6 {[%clk
0:00:15]} 46. Rxa2 {[%clk 0:00:37.6]} 46... Rc5 {[%clk 0:00:15.6]} 47. Rg2+
{[%clk 0:00:37.2]} 47... Kh7 {[%clk 0:00:15.6]} 48. Ke4 {[%clk 0:00:37.4]} 48...
Ra5 {[%clk 0:00:13.5]} 49. Rg5 {[%clk 0:00:36.7]} 49... Ra3 {[%clk 0:00:13.9]}
50. Rg3 {[%clk 0:00:32.2]} 50... Ra5 {[%clk 0:00:13.8]} 51. Kd4 {[%clk
0:00:24.1]} 51... Rd5+ {[%clk 0:00:13.2]} 52. Ke4 {[%clk 0:00:23.6]} 52... Ra5
{[%clk 0:00:13.2]} 53. Kf3 {[%clk 0:00:23.4]} 53... Ra1 {[%clk 0:00:11.8]} 54.
Rg5 {[%clk 0:00:22]} 54... Ra4 {[%clk 0:00:11.4]} 55. Rc5 {[%clk 0:00:17.4]}
55... Ra3 {[%clk 0:00:10.2]} 56. f5 {[%clk 0:00:16.9]} 56... exf5 {[%clk
0:00:07.6]} 57. Rxf5 {[%clk 0:00:16.7]} 57... Kg6 {[%clk 0:00:06.3]} 58. Kf4
{[%clk 0:00:13.1]} 58... Ra1 {[%clk 0:00:03.8]} 59. h5+ {[%clk 0:00:12.7]} 59...
Kg7 {[%clk 0:00:03.8]} 60. Rg5+ {[%clk 0:00:10.5]} 60... Kh7 {[%clk 0:00:04.2]}
61. Rb5 {[%clk 0:00:09.6]} 61... Kh6 {[%clk 0:00:04]} 62. e4 {[%clk 0:00:09.3]}
62... Rf1+ {[%clk 0:00:04.3]} 63. Kg4 {[%clk 0:00:08.9]} 63... Rg1+ {[%clk
0:00:04.5]} 64. Kf3 {[%clk 0:00:08.9]} 64... Rg5 {[%clk 0:00:03.9]} 65. Rd5
{[%clk 0:00:06.1]} 65... Rxh5 {[%clk 0:00:03.2]} 66. Rd7 {[%clk 0:00:04.7]}
66... Kg7 {[%clk 0:00:03.3]} 67. Rd5 {[%clk 0:00:04.2]} 67... Rh6 {[%clk
0:00:04.2]} 68. Rf5 {[%clk 0:00:03.1]} 1/2-1/2

[Event "*** Titled Tuesday Blitz"]
[Site "Chess.com"]
[Date "2021.03.16"]
[Round "5"]
[White "Das_Virus_2020"]
[Black "BvsN"]
[Result "1-0"]
[WhiteElo "2476"]
[BlackElo "2415"]
[TimeControl "180+1"]
[EndTime "10:56:02 PDT"]
[Termination "Das_Virus_2020 won on time"]

1. e4 {[%clk 0:02:59.8]} 1... c5 {[%clk 0:02:59.6]} 2. c3 {[%clk 0:02:59.4]}
2... Nf6 {[%clk 0:02:59.4]} 3. e5 {[%clk 0:02:59.3]} 3... Nd5 {[%clk 0:02:59.7]}
4. d4 {[%clk 0:02:59.9]} 4... cxd4 {[%clk 0:02:59.9]} 5. cxd4 {[%clk 0:03:00.1]}
5... d6 {[%clk 0:02:59.7]} 6. Nf3 {[%clk 0:03:00.3]} 6... e6 {[%clk 0:02:59.8]}
7. a3 {[%clk 0:02:59.2]} 7... Bd7 {[%clk 0:02:58.8]} 8. Bd3 {[%clk 0:02:57.9]}
8... Bc6 {[%clk 0:02:58.7]} 9. O-O {[%clk 0:02:57.1]} 9... Nd7 {[%clk
0:02:58.7]} 10. Qe2 {[%clk 0:02:49.4]} 10... Be7 {[%clk 0:02:54.7]} 11. Re1
{[%clk 0:02:44.6]} 11... O-O {[%clk 0:02:52.5]} 12. Qe4 {[%clk 0:02:20.8]} 12...
g6 {[%clk 0:02:39.1]} 13. Qg4 {[%clk 0:02:17.4]} 13... dxe5 {[%clk 0:02:32]} 14.
dxe5 {[%clk 0:02:16.6]} 14... Rc8 {[%clk 0:02:19.6]} 15. Bh6 {[%clk 0:02:12]}
15... Re8 {[%clk 0:02:19.2]} 16. Nbd2 {[%clk 0:02:10.8]} 16... Bf8 {[%clk
0:02:07.8]} 17. Bxf8 {[%clk 0:02:05.4]} 17... Nxf8 {[%clk 0:02:07.5]} 18. Ne4
{[%clk 0:02:05.3]} 18... Rc7 {[%clk 0:01:50]} 19. Rad1 {[%clk 0:02:01.3]} 19...
Qe7 {[%clk 0:01:46.1]} 20. h4 {[%clk 0:01:56]} 20... f5 {[%clk 0:01:39.6]} 21.
exf6 {[%clk 0:01:52.2]} 21... Nxf6 {[%clk 0:01:39.8]} 22. Nxf6+ {[%clk 0:01:52]}
22... Qxf6 {[%clk 0:01:40]} 23. Ne5 {[%clk 0:01:43.4]} 23... Bd5 {[%clk
0:01:17.7]} 24. h5 {[%clk 0:01:17.8]} 24... Rg7 {[%clk 0:01:16.3]} 25. h6 {[%clk
0:01:16.6]} 25... Rc7 {[%clk 0:01:14.8]} 26. Qg3 {[%clk 0:01:09.4]} 26... Rec8
{[%clk 0:01:08.3]} 27. f3 {[%clk 0:00:36.3]} 27... Nd7 {[%clk 0:01:07.7]} 28.
Ng4 {[%clk 0:00:33.5]} 28... Qxb2 {[%clk 0:00:55.7]} 29. Be4 {[%clk 0:00:28.9]}
29... Bxe4 {[%clk 0:00:44.8]} 30. Rxe4 {[%clk 0:00:27.7]} 30... Rc1 {[%clk
0:00:39.7]} 31. Rxc1 {[%clk 0:00:26.6]} 31... Qxc1+ {[%clk 0:00:37.9]} 32. Kh2
{[%clk 0:00:26.5]} 32... Qc7 {[%clk 0:00:34.1]} 33. Rxe6 {[%clk 0:00:18.9]}
33... Qxg3+ {[%clk 0:00:26]} 34. Kxg3 {[%clk 0:00:19.8]} 34... Kf7 {[%clk
0:00:24.3]} 35. Rd6 {[%clk 0:00:19.2]} 35... Ke7 {[%clk 0:00:21.5]} 36. Rd3
{[%clk 0:00:18.5]} 36... Rf8 {[%clk 0:00:17.3]} 37. Nf2 {[%clk 0:00:17.7]} 37...
Nf6 {[%clk 0:00:15.5]} 38. Rb3 {[%clk 0:00:16.5]} 38... b6 {[%clk 0:00:15.2]}
39. Nd3 {[%clk 0:00:16.5]} 39... Kd6 {[%clk 0:00:13.3]} 40. Nf4 {[%clk 0:00:16]}
40... Re8 {[%clk 0:00:10.8]} 41. Rd3+ {[%clk 0:00:15.2]} 41... Kc5 {[%clk
0:00:09.4]} 42. Kh4 {[%clk 0:00:15.3]} 42... Re5 {[%clk 0:00:08.2]} 43. g4
{[%clk 0:00:14.9]} 43... g5+ {[%clk 0:00:08.2]} 44. Kg3 {[%clk 0:00:14.4]} 44...
gxf4+ {[%clk 0:00:08.4]} 45. Kxf4 {[%clk 0:00:15.3]} 45... Rd5 {[%clk
0:00:08.4]} 46. Rc3+ {[%clk 0:00:15.4]} 46... Kd6 {[%clk 0:00:07.6]} 47. Rc8
{[%clk 0:00:14.8]} 47... Nd7 {[%clk 0:00:04.9]} 48. g5 {[%clk 0:00:14.2]} 48...
Ke7 {[%clk 0:00:04]} 49. Kg4 {[%clk 0:00:13.3]} 49... Nf8 {[%clk 0:00:03.4]} 50.
f4 {[%clk 0:00:13.1]} 50... Rd8 {[%clk 0:00:03.6]} 51. Rc7+ {[%clk 0:00:12.7]}
51... Rd7 {[%clk 0:00:04.1]} 52. Rc8 {[%clk 0:00:12.8]} 52... Rd8 {[%clk
0:00:04.7]} 53. Rc3 {[%clk 0:00:12.5]} 53... Rd7 {[%clk 0:00:04.6]} 54. Re3+
{[%clk 0:00:11.7]} 54... Kf7 {[%clk 0:00:04.9]} 55. f5 {[%clk 0:00:12]} 55...
Rd4+ {[%clk 0:00:05.2]} 56. Kg3 {[%clk 0:00:12.3]} 56... Nd7 {[%clk 0:00:05.4]}
57. Rc3 {[%clk 0:00:12]} 57... Rd5 {[%clk 0:00:05.4]} 58. Rc7 {[%clk 0:00:11.3]}
58... Ke8 {[%clk 0:00:05.4]} 59. g6 {[%clk 0:00:11]} 59... Rxf5 {[%clk
0:00:03.9]} 60. gxh7 {[%clk 0:00:10.4]} 60... Rf8 {[%clk 0:00:04.2]} 61. Rxa7
{[%clk 0:00:10.1]} 61... Nf6 {[%clk 0:00:02.7]} 62. Ra8+ {[%clk 0:00:09.4]}
62... Ke7 {[%clk 0:00:03.1]} 63. Rxf8 {[%clk 0:00:09.3]} 63... Nxh7 {[%clk
0:00:03.7]} 64. Rg8 {[%clk 0:00:08.8]} 64... Nf6 {[%clk 0:00:03.1]} 65. Rg7+
{[%clk 0:00:08.7]} 65... Kf8 {[%clk 0:00:03.2]} 66. Rb7 {[%clk 0:00:08.4]} 66...
Kg8 {[%clk 0:00:02.3]} 67. Rxb6 {[%clk 0:00:08]} 67... Nd5 {[%clk 0:00:02.7]}
68. Rb7 {[%clk 0:00:07.9]} 68... Kh8 {[%clk 0:00:02.7]} 69. a4 {[%clk
0:00:07.9]} 69... Nc3 {[%clk 0:00:03.1]} 70. a5 {[%clk 0:00:08]} 70... Ne4+
{[%clk 0:00:04]} 71. Kf4 {[%clk 0:00:08]} 71... Nf6 {[%clk 0:00:03.9]} 72. a6
{[%clk 0:00:07.4]} 72... Nd5+ {[%clk 0:00:01.4]} 73. Ke5 {[%clk 0:00:07.1]} 1-0

[Event "*** Titled Tuesday Blitz"]
[Site "Chess.com"]
[Date "2021.03.16"]
[Round "5"]
[White "Margency"]
[Black "vugarrasulov"]
[Result "0-1"]
[WhiteElo "2725"]
[BlackElo "2850"]
[TimeControl "180+1"]
[EndTime "10:56:06 PDT"]
[Termination "vugarrasulov won on time"]

1. e4 {[%clk 0:02:54.2]} 1... e5 {[%clk 0:03:00.4]} 2. Nf3 {[%clk 0:02:53.7]}
2... Nc6 {[%clk 0:03:01]} 3. Bc4 {[%clk 0:02:53.6]} 3... Bc5 {[%clk 0:03:00.3]}
4. d3 {[%clk 0:02:53]} 4... Nf6 {[%clk 0:03:00.2]} 5. O-O {[%clk 0:02:53.1]}
5... h6 {[%clk 0:03:00]} 6. c3 {[%clk 0:02:51.7]} 6... d6 {[%clk 0:02:59.7]} 7.
a4 {[%clk 0:02:51.3]} 7... a6 {[%clk 0:02:59]} 8. Na3 {[%clk 0:02:49.7]} 8...
O-O {[%clk 0:02:56.8]} 9. Nc2 {[%clk 0:02:49]} 9... d5 {[%clk 0:02:51.2]} 10.
exd5 {[%clk 0:02:48.7]} 10... Nxd5 {[%clk 0:02:52.1]} 11. Re1 {[%clk 0:02:48.2]}
11... Re8 {[%clk 0:02:50.9]} 12. d4 {[%clk 0:02:41.8]} 12... Ba7 {[%clk
0:02:45.4]} 13. dxe5 {[%clk 0:02:35.5]} 13... Be6 {[%clk 0:02:44.9]} 14. Qe2
{[%clk 0:02:16.9]} 14... Qe7 {[%clk 0:02:27.8]} 15. h3 {[%clk 0:02:07.2]} 15...
Rad8 {[%clk 0:02:27.3]} 16. Bd2 {[%clk 0:02:04.3]} 16... Rd7 {[%clk 0:02:12.8]}
17. Ncd4 {[%clk 0:01:46]} 17... Nxd4 {[%clk 0:02:12.5]} 18. Nxd4 {[%clk
0:01:46.1]} 18... Bxd4 {[%clk 0:02:12.7]} 19. cxd4 {[%clk 0:01:46.2]} 19... Red8
{[%clk 0:02:09.7]} 20. Be3 {[%clk 0:01:21.2]} 20... c6 {[%clk 0:02:07.4]} 21. a5
{[%clk 0:01:20.2]} 21... Qb4 {[%clk 0:02:02.9]} 22. b3 {[%clk 0:01:18.7]} 22...
Qe7 {[%clk 0:01:52.1]} 23. Qf3 {[%clk 0:01:14.3]} 23... Nc7 {[%clk 0:01:49.3]}
24. Qg3 {[%clk 0:01:10.9]} 24... Kh8 {[%clk 0:01:47.9]} 25. f4 {[%clk
0:01:01.9]} 25... Nb5 {[%clk 0:01:43.5]} 26. Bxb5 {[%clk 0:00:50.5]} 26... cxb5
{[%clk 0:01:43.3]} 27. Rf1 {[%clk 0:00:46.3]} 27... Bf5 {[%clk 0:01:43.3]} 28.
Rac1 {[%clk 0:00:34.4]} 28... Qe6 {[%clk 0:01:36.9]} 29. b4 {[%clk 0:00:32]}
29... Qb3 {[%clk 0:01:34]} 30. Rf3 {[%clk 0:00:22.8]} 30... Be4 {[%clk
0:01:30.2]} 31. Rf2 {[%clk 0:00:22.7]} 31... Rxd4 {[%clk 0:01:30.3]} 32. f5
{[%clk 0:00:20.5]} 32... Rd1+ {[%clk 0:01:30.1]} 33. Rxd1 {[%clk 0:00:20.8]}
33... Rxd1+ {[%clk 0:01:30.7]} 34. Kh2 {[%clk 0:00:21.4]} 34... Rd3 {[%clk
0:01:19.8]} 35. f6 {[%clk 0:00:21.6]} 35... g5 {[%clk 0:01:16.5]} 36. Re2 {[%clk
0:00:21.1]} 36... Qe6 {[%clk 0:01:07.4]} 37. h4 {[%clk 0:00:20.5]} 37... Bg6
{[%clk 0:00:59.7]} 38. hxg5 {[%clk 0:00:20.7]} 38... h5 {[%clk 0:01:00.3]} 39.
Rd2 {[%clk 0:00:20.2]} 39... Rb3 {[%clk 0:00:51]} 40. Rd6 {[%clk 0:00:19.3]}
40... Qg4 {[%clk 0:00:40.3]} 41. Qxg4 {[%clk 0:00:19.2]} 41... hxg4 {[%clk
0:00:41.2]} 42. Bc5 {[%clk 0:00:20]} 42... Bf5 {[%clk 0:00:37.1]} 43. Rd8+
{[%clk 0:00:15.8]} 43... Kh7 {[%clk 0:00:37]} 44. Bf2 {[%clk 0:00:15.8]} 44...
Rxb4 {[%clk 0:00:31]} 45. Rf8 {[%clk 0:00:15.8]} 45... Be6 {[%clk 0:00:30.7]}
46. Rb8 {[%clk 0:00:16.2]} 46... Rb2 {[%clk 0:00:28.1]} 47. Kg3 {[%clk
0:00:16.1]} 47... b4 {[%clk 0:00:26.9]} 48. Rxb7 {[%clk 0:00:16.1]} 48... b3
{[%clk 0:00:27.5]} 49. Bd4 {[%clk 0:00:16.1]} 49... Rd2 {[%clk 0:00:27.5]} 50.
Bc5 {[%clk 0:00:15.1]} 50... Kg6 {[%clk 0:00:26.6]} 51. Kf4 {[%clk 0:00:15.1]}
51... Rc2 {[%clk 0:00:24.1]} 52. Bd4 {[%clk 0:00:14.7]} 52... Rc4 {[%clk
0:00:21.5]} 53. Ke3 {[%clk 0:00:15.2]} 53... Ra4 {[%clk 0:00:21.5]} 54. g3
{[%clk 0:00:15.4]} 54... Rxa5 {[%clk 0:00:21.2]} 55. Kd3 {[%clk 0:00:14.2]}
55... Ra2 {[%clk 0:00:20]} 56. Kc3 {[%clk 0:00:14.2]} 56... Rc2+ {[%clk
0:00:19.8]} 57. Kd3 {[%clk 0:00:14.9]} 57... Rg2 {[%clk 0:00:20]} 58. Ke4 {[%clk
0:00:12.9]} 58... Rd2 {[%clk 0:00:15.6]} 59. Rb8 {[%clk 0:00:12.4]} 59... Bf5+
{[%clk 0:00:15.1]} 60. Kd5 {[%clk 0:00:11.1]} 60... Kxg5 {[%clk 0:00:14.7]} 61.
Kc4 {[%clk 0:00:10]} 61... Be6+ {[%clk 0:00:14.4]} 62. Kc3 {[%clk 0:00:10.3]}
62... Rc2+ {[%clk 0:00:15]} 63. Kd3 {[%clk 0:00:11]} 63... Kf5 {[%clk
0:00:15.3]} 64. Rb6 {[%clk 0:00:09.8]} 64... a5 {[%clk 0:00:15]} 65. Ra6 {[%clk
0:00:09.4]} 65... Ra2 {[%clk 0:00:14.3]} 66. Bc3 {[%clk 0:00:08.9]} 66... a4
{[%clk 0:00:14.2]} 67. Ra8 {[%clk 0:00:09.3]} 67... Rg2 {[%clk 0:00:12.3]} 68.
Rh8 {[%clk 0:00:08.7]} 68... Rxg3+ {[%clk 0:00:12.7]} 69. Kd4 {[%clk 0:00:09.4]}
69... Rxc3 {[%clk 0:00:12.2]} 70. Kxc3 {[%clk 0:00:09.2]} 70... a3 {[%clk
0:00:12.9]} 0-1